[Event "Superbet Blitz Poland 2022"]
[Site "Warsaw"]
[Date "2022.05.22"]
[Round "6.2"]
[White "Korobov, Anton"]
[Black "Wojtaszek, Radoslaw"]
[Result "1/2-1/2"]
[ECO "A28"]
[WhiteElo "2671"]
[BlackElo "2696"]
[Annotator "TA"]
[PlyCount "88"]
[EventDate "2022.05.22"]
[EventType "tourn"]
[EventCountry "POL"]
[SourceTitle "playchess.com"]
[Source "ChessBase"]
[SourceQuality "1"]
[TimeControl "300+2"]

{[%evp 11,88,-15,0,0,0,0,0,7,10,0,24,0,0,0,0,2,26,25,41,39,50,39,36,33,66,20,30,4,10,12,14,7,17,0,0,0,71,66,84,68,58,0,0,0,0,0,0,0,0,0,0,0,0,0,0,0,0,0,0,0,0,0,0,0,0,0,0,0,0,0,0,0,0,0,0,0,0,0,0]} 1. c4 {[%emt 0:00:01]} Nf6 {[%emt 0:00:01]} 2. Nc3 {[%emt 0:00:03]} e5 {[%emt 0:00:01]} 3. Nf3 {[%emt 0:00:02]} Nc6 {[%emt 0:00:02]} 4. a3 {[%emt 0:00:01]} d5 {[%emt 0:00:02]} 5. cxd5 {[%emt 0:00:02]} Nxd5 {[%emt 0:00:02]} 6. Qc2 {[%emt 0:00:03]} Nxc3 $1 {[%emt 0:00:03][%mdl 4] outshines the older 6...Be7.} 7. dxc3 {[%emt 0:00:03] A28: English Opening: Four Knights Variation.} Bd6 {[%emt 0:00:04]} 8. e4 {[%emt 0:00:05]} O-O {[%emt 0:00:05]} 9. Be3 {[%emt 0:00:04]} a5 {[%emt 0:00:06]} 10. Bc4 {[%emt 0:00:22] [#]} Bg4 $146 {[%emt 0:00:03]} ({Predecessor:} 10... Qe7 11. a4 Kh8 12. Qe2 Nd8 13. h3 Ne6 14. O-O f6 15. Rfd1 b6 16. Bd5 Rb8 17. Nd2 Bd7 18. Nc4 Bc5 19. Qc2 Rfd8 20. Rd2 Be8 21. Kh2 Ng5 22. h4 {½-½ (22) Troger,D (2330)-Maierhofer,J (2290) ICCF email 2018}) 11. O-O-O {[%emt 0:00:28]} Qf6 {[%emt 0:00:28]} 12. h3 {[%emt 0:00:29]} Be6 {[%emt 0:00:22]} 13. Bd5 {[%emt 0:00:31]} Bxd5 {[%emt 0:01:16]} 14. exd5 {[%emt 0:00:02]} Nb8 {[%emt 0:00:08][%cal Bc6b8,Bb8d7,Bd7e5,Be5c4,Bc4e3][%mdl 32]} 15. Ng5 {[%emt 0:00:13][%csl Gg5][%cal Rc2h7]} Qg6 {[%emt 0:00:03]} 16. Qxg6 {[%emt 0:00:13]} hxg6 {[%emt 0:00:02]} 17. h4 {[%emt 0:00:16]} Be7 {[%emt 0:00:27]} 18. f4 {[%emt 0:00:18] White is much more active.} (18. Ne4 $14 {was preferrable.}) 18... Nd7 $11 {[%emt 0:00:08]} 19. fxe5 {[%emt 0:00:03]} Nxe5 {[%emt 0:00:03]} 20. Bf4 {[%emt 0:00:08]} Bd6 {[%emt 0:00:07]} 21. Kc2 {[%emt 0:00:08]} Nc4 {[%emt 0:00:07]} 22. Rd4 {[%emt 0:00:20]} b5 {[%emt 0:00:33]} 23. Bxd6 {[%emt 0:00:21]} cxd6 {[%emt 0:00:02] [#]} (23... Nxd6 $11 {keeps the balance.} 24. h5 gxh5) 24. a4 $1 $16 {[%emt 0:00:05]} Ne3+ {[%emt 0:00:13]} 25. Kd3 {[%emt 0:00:02]} Nf5 {[%emt 0:00:01] [#]} 26. Rf4 {[%emt 0:00:07]} (26. axb5 $1 $14 Nxd4 27. Kxd4) 26... bxa4 {[%emt 0:00:07] The position is equal.} 27. h5 {[%emt 0:00:07]} Rfe8 {[%emt 0:00:10] aiming for ...Re3+.} 28. hxg6 {[%emt 0:00:04]} (28. Rxa4 Re3+ 29. Kd2 Rg3 $17) 28... fxg6 {[%emt 0:00:01] Strongly threatening ...Re3+.} 29. Ne6 {[%emt 0:00:11]} ({Of course not} 29. Rxa4 Re3+ 30. Kc4 Rc8+ 31. Kb3 Rb8+ 32. Ka3 Re2 $15) 29... Rab8 {[%emt 0:00:02]} 30. Rxa4 {[%emt 0:00:14]} Rxb2 {[%emt 0:00:04]} 31. g4 {[%emt 0:00:01]} Nh6 {[%emt 0:00:13]} (31... Ng3 $2 32. Rg1 $18) 32. g5 {[%emt 0:00:07]} Nf5 {[%emt 0:00:22]} 33. Rxa5 {[%emt 0:00:01]} Rc8 {[%emt 0:00:11]} 34. Ra6 {[%emt 0:00:01]} Rg2 {[%emt 0:00:06]} 35. Rc6 {[%emt 0:00:03]} Ra8 {[%emt 0:00:02]} 36. Rb1 {[%emt 0:00:15]} Rg3+ {[%emt 0:00:01]} 37. Ke4 {[%emt 0:00:14]} Ra4+ {[%emt 0:00:12]} 38. Rb4 {[%emt 0:00:03]} Rg4+ {[%emt 0:00:08]} 39. Kf3 {[%emt 0:00:07] And now Rc8+ would win.} Rgxb4 {[%emt 0:00:03]} ({Don't take} 39... Rg3+ 40. Kf4 Rxb4+ 41. cxb4 $16) 40. Rc8+ {[%emt 0:00:01]} Kf7 {[%emt 0:00:01]} 41. Rc7+ {[%emt 0:00:03]} Kg8 {[%emt 0:00:06]} 42. Rc8+ {[%emt 0:00:03]} Kf7 {[%emt 0:00:01]} 43. Rc7+ {[%emt 0:00:02]} Kg8 {[%emt 0:00:04]} 44. Rc8+ {[%emt 0:00:02]} Kf7 {[%emt 0:00:00] Weighted Error Value: White=0.06 (flawless) /Black=0.07 (flawless)} 1/2-1/2

[Event "Superbet Blitz Poland 2022"]
[Site "Warsaw"]
[Date "2022.05.22"]
[Round "6.3"]
[White "Gavrilescu, David"]
[Black "Rapport, Richard"]
[Result "0-1"]
[ECO "B51"]
[WhiteElo "2518"]
[BlackElo "2776"]
[Annotator "TA"]
[PlyCount "92"]
[EventDate "2022.05.22"]
[EventType "tourn"]
[EventCountry "POL"]
[SourceTitle "playchess.com"]
[Source "ChessBase"]
[SourceQuality "1"]
[TimeControl "300+2"]

{[%evp 9,92,0,26,0,0,0,37,39,37,39,33,27,32,22,37,25,24,14,27,10,19,0,29,8,19,15,40,-36,-28,-34,-23,-33,-37,-38,-20,-24,-17,-73,-57,-161,-151,-175,-86,-74,-65,-70,-61,-107,-105,-185,-185,-169,-172,-156,-127,-121,-107,-258,-164,-429,-400,-518,-454,-557,-266,-470,-460,-468,-470,-468,-456,-471,-470,-471,-458,-469,-465,-495,-481,-709,-709,-675,-569,-687,-686]} 1. e4 {[%emt 0:00:03]} c5 {[%emt 0:00:01]} 2. Nf3 {[%emt 0:00:01]} d6 {[%emt 0:00:01]} 3. Bb5+ {[%emt 0:00:02]} Nd7 {[%emt 0:00:02]} 4. d4 {[%emt 0:00:01]} cxd4 {[%emt 0:00:05]} 5. Qxd4 {[%emt 0:00:01]} Ngf6 {[%emt 0:00:11]} 6. O-O {[%emt 0:00:06] B51: Sicilian: Moscow Variation (3 Bb5+) without 3...Bd7.} a6 {[%emt 0:00:05]} 7. Be2 {[%emt 0:00:02]} Qc7 $5 {[%emt 0:00:06][%mdl 4] Leaves trodden paths.} (7... e5 $5 {[%cal Re5d4]} 8. Qe3 Be7 $11) 8. c4 {[%emt 0:00:06] White is slightly better.} e6 {[%emt 0:00:18]} 9. Nc3 {[%emt 0:00:02]} Be7 {[%emt 0:00:01]} 10. b3 {[%emt 0:00:08]} O-O {[%emt 0:00:04]} 11. Bb2 {[%emt 0:00:02]} b6 {[%emt 0:00:03]} 12. Rac1 {[%emt 0:00:02]} Bb7 {[%emt 0:00:02]} 13. Rfd1 {[%emt 0:00:06] [#]} Rfe8 $146 {[%emt 0:00:01]} ({Predecessor:} 13... Rfd8 14. Nd2 Bf8 15. Nf1 Rac8 16. Ng3 Qb8 17. b4 Qa8 18. a3 Qb8 19. Kh1 Ba8 {1-0 (66) Real Pereyra,J (2147)-Diaz Rosas,J (2393) Mexico City 2022}) 14. h3 {[%emt 0:00:04]} Rac8 {[%emt 0:00:05]} 15. Qe3 {[%emt 0:00:46]} Bf8 {[%emt 0:00:07]} 16. Bd3 {[%emt 0:00:09]} Qb8 {[%emt 0:00:06]} 17. Re1 {[%emt 0:00:19]} g6 {[%emt 0:00:16]} 18. e5 {[%emt 0:00:28]} ({White should play} 18. Na4 $14) 18... Bxf3 $15 {[%emt 0:00:50]} 19. exf6 {[%emt 0:00:02]} Ba8 {[%emt 0:00:01]} 20. Ne4 {[%emt 0:00:34]} e5 {[%emt 0:00:48]} 21. Qg5 {[%emt 0:00:28]} h6 {[%emt 0:00:12]} 22. Qh4 {[%emt 0:00:30]} Re6 {[%emt 0:00:01]} 23. f4 {[%emt 0:00:18]} (23. b4 $11 {keeps the balance.}) 23... exf4 $1 $17 {[%emt 0:00:03]} 24. Qxf4 {[%emt 0:00:06] [#]} ({Better is} 24. Nf2 $1 $15 Qb7 25. Bf1 (25. Be4 $2 Rxe4 26. Nxe4 Nc5 $19) 25... Rxe1 26. Rxe1) 24... Rce8 $1 $19 {[%emt 0:00:02] aiming for ...Nc5.} 25. Bc3 {[%emt 0:00:10] [#]} Ne5 {[%emt 0:00:19]} (25... Qb7 $1 $19 {is more deadly. Threatens to win with ...Nc5.} 26. Re2 Rxe4 27. Bxe4 Rxe4 28. Rxe4 g5) 26. Bb1 $17 {[%emt 0:00:02]} d5 {[%emt 0:00:01]} 27. cxd5 {[%emt 0:00:20]} Bxd5 {[%emt 0:00:02]} 28. Kh1 {[%emt 0:00:02]} (28. Qg3 $15) 28... Qb7 {[%emt 0:00:19]} 29. Re2 {[%emt 0:00:05]} (29. Re3 $17) 29... Nd7 $19 {[%emt 0:00:17]} 30. Rce1 {[%emt 0:00:01]} Qc6 $36 {[%emt 0:00:01][%mdl 2048] Black is in control.} 31. Bd4 {[%emt 0:00:05]} Nc5 {[%emt 0:00:09]} 32. Bxc5 {[%emt 0:00:04]} bxc5 {[%emt 0:00:01]} 33. Qg4 $2 {[%emt 0:00:19] White does not recover from this.} (33. Bd3 $17 {was the only defense.}) 33... Re5 {[%emt 0:00:03] And now ...c4 would win.} 34. h4 $2 {[%emt 0:00:18]} (34. Bd3) 34... c4 {[%emt 0:00:11]} 35. bxc4 {[%emt 0:00:04]} Qxc4 {[%emt 0:00:02]} 36. Qf3 {[%emt 0:00:08]} Qb4 {[%emt 0:00:07]} (36... Bb4 $142 37. Qe3 Bxe4 38. Bxe4 Rxe4 39. Qxe4 Rxe4 40. Rxe4 Qb5) 37. a3 $2 {[%emt 0:00:02]} (37. Kh2) 37... Qxa3 {[%emt 0:00:03] Black is clearly winning.} 38. Qxa3 {[%emt 0:00:02]} Bxa3 {[%emt 0:00:01][%cal Bf8a3,Ba3b2,Bb2f6][%mdl 32]} 39. Nc3 {[%emt 0:00:01]} Rxe2 {[%emt 0:00:05]} 40. Rxe2 {[%emt 0:00:02]} Rxe2 41. Nxe2 {[%emt 0:00:01][%mdl 4096] Endgame KBB-KBN} Bb2 {[%emt 0:00:06] A strong pair of Bishops.} 42. Nf4 {[%emt 0:00:06]} Bb3 {[%emt 0:00:06]} 43. Be4 {[%emt 0:00:03]} a5 {[%emt 0:00:03] ...a4 is the strong threat.} ({Not} 43... Bxf6 $2 44. Bd5 Bc2 45. g3 $19) 44. h5 {[%emt 0:00:04]} (44. Nd3 $142 Bxf6 45. h5) 44... gxh5 {[%emt 0:00:04]} 45. Nd3 {[%emt 0:00:02]} Bxf6 {[%emt 0:00:08] White must now prevent ...Bc2.} 46. Bc6 {[%emt 0:00:01]} Bd4 {[%emt 0:00:04] Weighted Error Value: White=0.51/Black=0.19 (very precise)} 0-1

[Event "Superbet Blitz Poland 2022"]
[Site "Warsaw"]
[Date "2022.05.22"]
[Round "6.4"]
[White "Shevchenko, Kirill"]
[Black "Caruana, Fabiano"]
[Result "0-1"]
[ECO "C49"]
[WhiteElo "2644"]
[BlackElo "2786"]
[Annotator "TA"]
[PlyCount "106"]
[EventDate "2022.05.22"]
[EventType "tourn"]
[EventCountry "POL"]
[SourceTitle "playchess.com"]
[Source "ChessBase"]
[SourceQuality "1"]
[TimeControl "300+2"]

{[%evp 12,106,0,0,6,0,-4,0,0,-7,0,-13,-4,-7,3,-20,0,-5,0,0,0,-11,-9,-12,-21,-27,-29,-31,-38,-40,0,-36,-29,-77,-72,-91,-91,-91,-91,-93,-95,-97,-97,-97,-97,-110,-116,-116,-115,-113,-108,-106,-87,-127,-91,-91,-86,-104,-97,-87,-84,-128,-128,-128,-128,-128,-108,-101,-82,-104,-98,-120,-70,-94,-98,-129,-99,-129,-129,-124,0,-83,-93,-93,-115,-135,-104,-386,-247,-332,-248,-898,-812,-29987,-29986,-29988,-29989]} 1. e4 {[%emt 0:00:02]} e5 {[%emt 0:00:01]} 2. Nf3 {[%emt 0:00:01]} Nf6 {[%emt 0:00:03]} 3. Nc3 {[%emt 0:00:22]} Nc6 {[%emt 0:00:01]} 4. Bb5 {[%emt 0:00:02]} Bb4 {[%emt 0:00:04]} 5. O-O {[%emt 0:00:10]} O-O {[%emt 0:00:02]} 6. Bxc6 {[%emt 0:00:02]} dxc6 {[%emt 0:00:05]} 7. d3 {[%emt 0:00:02]} Nd7 {[%emt 0:00:06][%cal Bf6d7,Bd7f8,Bf8g6][%mdl 32] C49: Four Knights: 4 Bb5 Bb4.} 8. Be3 {[%emt 0:00:24]} Re8 {[%emt 0:00:02]} 9. Ne2 {[%emt 0:00:28]} Nf8 {[%emt 0:00:03] The position is equal.} 10. Ng3 {[%emt 0:00:22]} Ng6 {[%emt 0:00:04] [#]} 11. c3 $146 {[%emt 0:00:09]} ({Predecessor:} 11. Nd2 Bf8 12. Ne2 c5 13. Nc4 b6 14. Qd2 Be6 15. b3 a5 16. a4 Bxc4 17. bxc4 {1-0 (37) Grachev,A (2366)-Kairbekova,A (2068) Cheliabinsk 2022}) 11... Bd6 {[%emt 0:00:02]} 12. Qc2 {[%emt 0:00:01]} c5 {[%emt 0:00:11]} 13. Nf5 {[%emt 0:00:10]} Bxf5 {[%emt 0:00:21]} 14. exf5 {[%emt 0:00:01]} Nh4 {[%emt 0:00:01]} 15. Nxh4 {[%emt 0:00:35]} Qxh4 {[%emt 0:00:02]} 16. Qe2 {[%emt 0:00:25] Inhibits Qh5.} e4 {[%emt 0:00:59][%csl Gd6][%cal Rh4h2] [#]} 17. g3 {[%emt 0:00:01]} Qh3 {[%emt 0:00:01]} 18. dxe4 {[%emt 0:00:36]} Rxe4 $40 {[%emt 0:00:01][%mdl 128] White needs to defend precisely.} 19. Qf3 {[%emt 0:00:05] [#]} Rh4 {[%emt 0:00:11][%csl Gh4][%cal Rh3h2]} 20. Qg2 {[%emt 0:00:16]} Qxg2+ {[%emt 0:00:02]} 21. Kxg2 {[%emt 0:00:01]} Rh5 {[%emt 0:00:01][%cal Bh4h5,Bh5f5,Bf5f6,Bf6e6,Be6e4][%mdl 32]} 22. f4 {[%emt 0:00:25]} (22. f6 $11) 22... Rxf5 $17 {[%emt 0:00:04]} 23. Rad1 {[%emt 0:00:02]} Re8 {[%emt 0:00:21]} 24. Kf3 {[%emt 0:00:07]} Rf6 {[%emt 0:00:03]} 25. c4 {[%emt 0:00:30]} Rfe6 {[%emt 0:00:04]} 26. Rd3 {[%emt 0:00:01]} b6 {[%emt 0:00:11][%cal Bb7b6,Bb6b5,Bb5b4][%mdl 32]} 27. Rfd1 {[%emt 0:00:06]} f5 {[%emt 0:00:03]} 28. Ra3 {[%emt 0:00:09]} Re4 {[%emt 0:00:08]} 29. Rc1 {[%emt 0:00:00]} a5 {[%emt 0:00:04]} 30. Rd3 {[%emt 0:00:02]} a4 {[%emt 0:00:49]} 31. Ra3 {[%emt 0:00:14]} b5 {[%emt 0:00:04]} 32. Rac3 {[%emt 0:00:08]} b4 {[%emt 0:00:37]} 33. Rd3 {[%emt 0:00:00]} Kf7 {[%emt 0:00:02]} 34. b3 {[%emt 0:00:06]} g6 {[%emt 0:00:30]} 35. Rc2 {[%emt 0:00:02]} Ra8 {[%emt 0:00:06]} (35... h5 {seems wilder.} 36. Rcd2 h4 37. Bf2 Ra8) 36. Bf2 {[%emt 0:00:01]} axb3 {[%emt 0:00:04]} 37. axb3 {[%emt 0:00:00]} Ra3 {[%emt 0:00:02]} 38. Rcd2 {[%emt 0:00:06]} Ke6 {[%emt 0:00:14] Black is more active.} 39. Be3 {[%emt 0:00:01]} h6 {[%emt 0:00:03]} 40. h3 {[%emt 0:00:01]} Be7 {[%emt 0:00:04]} 41. g4 {[%emt 0:00:03]} Bd6 {[%emt 0:00:09]} (41... Kf6 $17 42. Rd1 Re6) 42. gxf5+ {[%emt 0:00:01]} gxf5 {[%emt 0:00:01]} 43. Rg2 {[%emt 0:00:02]} Kf7 {[%emt 0:00:08] Against Rg6} 44. Rgd2 {[%emt 0:00:02]} Re6 {[%emt 0:00:05]} 45. Rb2 {[%emt 0:00:02]} Re4 {[%emt 0:00:06]} (45... Ra1 $17 46. Rd5 c6) 46. Rd5 {[%emt 0:00:02]} (46. Rbd2 $1 $11 {keeps the balance.}) 46... Ke6 {[%emt 0:00:00]} 47. h4 {[%emt 0:00:04]} h5 {[%emt 0:00:05]} 48. Rd3 {[%emt 0:00:01]} Be7 {[%emt 0:00:02][%cal Oe4c4] And now ...Rxc4! would win.} 49. Rd5 $2 {[%emt 0:00:01][%mdl 8192] Loses the game.} (49. Rb1 $17) 49... c6 {[%emt 0:00:02]} 50. Rd1 {[%emt 0:00:03]} Bf6 {[%emt 0:00:01]} 51. Rbd2 {[%emt 0:00:01]} (51. Rbb1) 51... Rxb3 $19 {[%emt 0:00:02]} 52. Rd7 {[%emt 0:00:04]} Rbxe3+ {[%emt 0:00:02]} 53. Kf2 {[%emt 0:00:01]} Bd4 {[%emt 0:00:01] Weighted Error Value: White=0.49/Black=0.13 (very precise)} 0-1

[Event "Superbet Blitz Poland 2022"]
[Site "Warsaw"]
[Date "2022.05.22"]
[Round "6.5"]
[White "Anand, Viswanathan"]
[Black "So, Wesley"]
[Result "1-0"]
[ECO "C48"]
[WhiteElo "2751"]
[BlackElo "2766"]
[Annotator "TA"]
[PlyCount "89"]
[EventDate "2022.05.22"]
[EventType "tourn"]
[EventCountry "POL"]
[SourceTitle "playchess.com"]
[Source "ChessBase"]
[SourceQuality "1"]
[TimeControl "300+2"]

{[%evp 10,89,24,0,9,0,0,0,0,0,0,0,0,0,0,0,0,0,0,0,0,0,0,0,0,0,0,0,13,10,0,0,42,14,20,0,138,12,14,11,17,0,0,0,0,0,14,0,10,0,0,0,8,13,37,0,14,25,73,69,39,48,125,152,213,218,279,250,262,237,215,188,185,195,396,392,509,386,539,526,585,557]} 1. e4 {[%emt 0:00:01]} e5 {[%emt 0:00:01]} 2. Nf3 {[%emt 0:00:02]} Nc6 {[%emt 0:00:01]} 3. Bb5 {[%emt 0:00:01]} Nf6 {[%emt 0:00:01]} 4. d3 {[%emt 0:00:02]} Bc5 {[%emt 0:00:02]} 5. Bxc6 {[%emt 0:00:01]} dxc6 {[%emt 0:00:01]} 6. Nc3 {[%emt 0:00:02]} Nd7 {[%emt 0:00:15] C48: Four Knights: 4 Bb5, replies other than 4...Bb4.} 7. Be3 {[%emt 0:00:23]} Bxe3 {[%emt 0:00:03]} 8. fxe3 {[%emt 0:00:01]} Qe7 {[%emt 0:00:01] The position is equal.} 9. O-O {[%emt 0:00:11]} b6 {[%emt 0:00:17] [#]} 10. Qe1 $146 {[%emt 0:00:07]} ({Predecessor:} 10. Ne2 Bb7 11. Ng3 g6 12. a4 a5 13. d4 O-O-O 14. Qe2 h5 15. h4 Rhe8 16. c3 {1-0 (64) Abdusattorov,N (2627)-So,W (2770) Chess.com INT 2020}) 10... Bb7 {[%emt 0:00:10]} 11. Qg3 {[%emt 0:00:03]} f6 {[%emt 0:00:02]} 12. a3 {[%emt 0:00:05]} a5 {[%emt 0:00:06]} 13. Nd2 {[%emt 0:00:30]} h5 {[%emt 0:00:12]} 14. Nf3 {[%emt 0:00:08][%cal Bd2f3,Bf3h4,Bh4f5][%mdl 32]} g5 {[%emt 0:00:13]} 15. h4 {[%emt 0:00:08][%cal Rh4g5]} Rg8 {[%emt 0:00:12]} 16. hxg5 {[%emt 0:00:08]} fxg5 {[%emt 0:00:01]} 17. Nh4 $36 {[%emt 0:00:02][%mdl 2048] White has some pressure.} O-O-O {[%emt 0:00:08]} 18. Nf5 {[%emt 0:00:01]} Qe6 {[%emt 0:00:09]} 19. b4 {[%emt 0:00:08]} axb4 {[%emt 0:00:09]} 20. axb4 {[%emt 0:00:01]} Kb8 {[%emt 0:00:01] Inhibits Ra7.} (20... h4 $5 {[%cal Rh4g3]} 21. Qh3 Kb8 $14) 21. Qe1 {[%emt 0:00:30]} h4 {[%emt 0:00:06]} 22. Qb1 {[%emt 0:00:12]} Nf6 {[%emt 0:00:20]} (22... Rh8 $11) 23. Qa2 {[%emt 0:00:08]} ({White must play} 23. Na4 $1 $16 {[%cal Ra4c5]}) 23... Qxa2 $11 {[%emt 0:00:01]} 24. Rxa2 {[%emt 0:00:03]} Ng4 {[%emt 0:00:20]} 25. Rf3 {[%emt 0:00:09]} Rgf8 {[%emt 0:00:12]} 26. Ra1 {[%emt 0:00:10]} Bc8 {[%emt 0:00:16]} 27. Raf1 {[%emt 0:00:06] Black must now prevent Ne7.} (27. g3 {is interesting.} Kb7 28. gxh4 gxh4 29. Kh1) 27... Bxf5 {[%emt 0:00:01]} 28. exf5 {[%emt 0:00:08]} Nf6 {[%emt 0:00:01]} 29. e4 {[%emt 0:00:13]} g4 {[%emt 0:00:24]} 30. Re3 {[%emt 0:00:09]} Kb7 {[%emt 0:00:06]} 31. Ree1 {[%emt 0:00:04]} g3 {[%emt 0:00:12]} 32. Ra1 {[%emt 0:00:18]} Ra8 {[%emt 0:00:24]} 33. Rfc1 {[%emt 0:00:43]} Rh8 {[%emt 0:00:05] [#]} (33... Ng4 $11) 34. Rxa8 $1 $16 {[%emt 0:00:03]} Rxa8 {[%emt 0:00:06][%mdl 4096] Endgame KRN-KRN} 35. Kf1 {[%emt 0:00:07]} Ra3 {[%emt 0:00:02] [#]} (35... b5 $14) 36. Nd1 $1 {[%emt 0:00:05]} Ra4 {[%emt 0:00:01]} (36... Ka6 $16) 37. Ke2 {[%emt 0:00:12]} Rxb4 {[%emt 0:00:02]} 38. Ne3 {[%emt 0:00:01]} c5 {[%emt 0:00:15]} 39. Rh1 {[%emt 0:00:05]} c4 {[%emt 0:00:01]} 40. dxc4 {[%emt 0:00:13]} Nxe4 {[%emt 0:00:04]} 41. Rxh4 {[%emt 0:00:01]} Nf6 {[%emt 0:00:53]} (41... Nd6 42. Rg4 Kc6 43. Rxg3 Nxc4) 42. Kf3 $18 {[%emt 0:00:12]} Ra4 {[%emt 0:00:08]} 43. Rh6 {[%emt 0:00:15]} Nd7 {[%emt 0:00:01]} 44. Kxg3 {[%emt 0:00:04]} Ra3 {[%emt 0:00:03]} 45. Kf3 {[%emt 0:00:02] Weighted Error Value: White=0.12 (very precise) /Black=0.30} 1-0

[Event "Superbet Blitz Poland 2022"]
[Site "Warsaw"]
[Date "2022.05.22"]
[Round "7.1"]
[White "So, Wesley"]
[Black "Aronian, Levon"]
[Result "1/2-1/2"]
[ECO "A06"]
[WhiteElo "2766"]
[BlackElo "2765"]
[Annotator "TA"]
[PlyCount "70"]
[EventDate "2022.05.22"]
[EventType "tourn"]
[EventCountry "POL"]
[SourceTitle "playchess.com"]
[Source "ChessBase"]
[SourceQuality "1"]
[TimeControl "300+2"]

{[%evp 9,70,16,24,4,22,20,21,15,22,11,31,30,26,37,31,37,37,35,48,41,43,51,47,44,41,47,45,44,55,49,52,52,55,51,51,51,58,52,100,43,47,47,62,51,58,52,65,0,0,0,0,0,87,0,0,0,0,0,0,0,0,0,0]} 1. Nf3 {[%emt 0:00:02]} d5 {[%emt 0:00:02]} 2. e3 {[%emt 0:00:02]} c5 {[%emt 0:00:02]} 3. b3 {[%emt 0:00:02]} Nc6 {[%emt 0:00:02]} 4. Bb2 {[%emt 0:00:02]} a6 {[%emt 0:00:08]} 5. d4 {[%emt 0:00:04]} Nf6 {[%emt 0:00:01]} 6. Nbd2 {[%emt 0:00:18] A06: Réti Opening: 1 Nf3 d5.} Bg4 {[%emt 0:00:09]} 7. h3 $1 {[%emt 0:00:05][%mdl 4] now scores much better than the old 7.Be2.} Bh5 {[%emt 0:00:07]} 8. Be2 {[%emt 0:00:06]} e6 {[%emt 0:00:01]} 9. O-O {[%emt 0:00:02]} Rc8 {[%emt 0:00:01]} 10. c4 {[%emt 0:00:05]} cxd4 {[%emt 0:00:29]} 11. Nxd4 {[%emt 0:00:04]} ({Don't play} 11. Bxd4 Nxd4 12. exd4 Bb4 $11) 11... Bxe2 {[%emt 0:00:04]} 12. Qxe2 {[%emt 0:00:23]} Nxd4 {[%emt 0:00:01]} 13. Bxd4 {[%emt 0:00:01]} Bc5 {[%emt 0:00:02]} 14. Bxf6 {[%emt 0:00:12]} Qxf6 {[%emt 0:00:01]} 15. cxd5 {[%emt 0:00:01]} exd5 {[%emt 0:00:01]} 16. Nf3 {[%emt 0:00:12]} O-O {[%emt 0:00:03]} 17. Rad1 {[%emt 0:00:07] [#]} Rfd8 $146 {[%emt 0:00:02]} ({Predecessor:} 17... Rcd8 18. Rd2 Rfe8 19. Rfd1 Qe6 20. Ng5 Qf5 21. Qg4 Qxg4 22. hxg4 d4 23. Nf3 Re4 {1-0 (49) Kravtsiv,M (2572)-Enchev,I (2393) Dresden 2014}) 18. Rd3 {[%emt 0:00:02]} d4 {[%emt 0:00:07]} 19. exd4 {[%emt 0:00:50]} Bxd4 {[%emt 0:00:03]} 20. Qe4 {[%emt 0:00:31][%csl LRb7,LRd4][%cal Rd3d4]} Bb6 {[%emt 0:00:51]} 21. Rxd8+ {[%emt 0:00:13]} Rxd8 {[%emt 0:00:01]} 22. Qxb7 {[%emt 0:00:01]} g6 {[%emt 0:00:02]} 23. Qe4 {[%emt 0:00:09]} Qb2 {[%emt 0:00:24]} (23... Rd6 $14 {deserves consideration.}) 24. Qb4 {[%emt 0:00:01]} ({White should play} 24. Qc6 $16 Rb8 25. Qd6) 24... Qf6 $14 {[%emt 0:00:10]} 25. Qc4 {[%emt 0:00:09]} h5 {[%emt 0:00:14]} 26. h4 {[%emt 0:00:02]} (26. Rc1 {is interesting.} g5 27. Qe4 Rd6 28. a4) 26... Kg7 {[%emt 0:00:06]} 27. Qe2 {[%emt 0:00:08]} (27. Rc1 {seems wilder.} Rd6 28. Rc2 a5 29. Qe2) 27... Rd6 {[%emt 0:00:08]} 28. Rd1 {[%emt 0:00:10]} (28. Rc1 $14) 28... Rxd1+ $11 {[%emt 0:00:42]} 29. Qxd1 {[%emt 0:00:01][%mdl 4096] Endgame KQB-KQN} Qb2 {[%emt 0:00:01][%csl LRa2,LRf2]} 30. Qd2 {[%emt 0:00:01]} Qb1+ {[%emt 0:00:10] [#]} (30... Qa1+ $1 $11 31. Qe1 Qxa2) 31. Kh2 {[%emt 0:00:03]} ({Better is} 31. Ne1 $1 $16) 31... Qf1 {[%emt 0:00:03] The position is equal.} 32. Nd4 {[%emt 0:00:23]} Qa1 {[%emt 0:00:14]} 33. Nf3 {[%emt 0:00:34]} Qf1 $1 {[%emt 0:00:02]} ({Resist} 33... Qf6 34. Qe2 $16) 34. Nd4 {[%emt 0:00:25]} Qa1 {[%emt 0:00:02]} 35. Nf3 {[%emt 0:00:18]} Qf1 $1 {[%emt 0:01:36] Weighted Error Value: White=0.09 (flawless) /Black=0.10 (very precise)} ({But not} 35... Qf6 36. Qe2 $16) 1/2-1/2